Cogmind - Beta 12 *** ADVENTURER MODE // 2023.10.22 @ 10:45:34 Player: Occam Result: Destroyed by 8R-AWN with 8R-AWN's Boregun Performance ------------- Evolutions (0) 0 Regions Visited (3) 600 Robots Destroyed (26) 130 Value Destroyed (374) 374 Prototype IDs (23) 460 Alien Tech Used (0) 0 Bonus (300) 300 TOTAL SCORE: 1864 Bonus ------- Aligned with FarCom 300 Cogmind --------- Core Integrity 0/250 Matter 1/300 Energy 250/250 System Corruption 1% Temperature Cool (0) Movement Core (100) Ox1 Location -10/Exiles Parts ------- > --- POWER (1) -------- Ion Engine > --- PROPULSION (2) --- (None) > --- UTILITY (2) ------ (None) > --- WEAPON (2) ------- Light Assault Rifle > --- INVENTORY (5) ---- Light Ion Engine Medium Matter Pod (76) Medium Laser Grenade Launcher Grenade Launcher Peak State ------------ > --- POWER ------------ Light Ion Engine > --- PROPULSION ------- Light Treads Light Treads > --- UTILITY ---------- High-capacity Storage Unit Supersonic Drone Bay > --- WEAPON ----------- Assault Rifle Slug Cannon > --- INVENTORY -------- Ion Engine Ion Engine Light Ion Engine Light Ion Engine Light Treads Compact Wheel Improved Heat Sink Medium Laser Medium Laser Medium Laser Light Assault Rifle Light Assault Rifle Grenade Launcher Grenade Launcher [Rating: 18] Favorites ----------- Power Light Ion Engine Engine Light Ion Engine Propulsion Light Treads Treads Light Treads Wheel Compact Wheel Utility High-capacity Storage Unit Device Seismic Detector Storage High-capacity Storage Unit Processor Signal Interpreter Weapon Assault Rifle Energy Gun Medium Laser Ballistic Gun Assault Rifle Ballistic Cannon Slug Cannon Launcher Grenade Launcher Build | -11 -10 -10 -10 ------- Run | Jun Mat Min Exi Slots Evolved . | . . . . Power . | . . . . Propulsion . | . . . . Utility . | . . . . Weapon . | . . . . Parts Attached 33 | 7 3 9 14 Power 5 | 1 . 2 2 Engine 5 | 1 . 2 2 Core . | . . . . Reactor . | . . . . Propulsion 9 | 2 1 3 3 Treads 5 | 1 1 1 2 Leg . | . . . . Wheel 4 | 1 . 2 1 Hover . | . . . . Flight . | . . . . Utility 7 | 2 1 2 2 Device 2 | 1 . . 1 Storage 4 | 1 1 1 1 Processor 1 | . . 1 . Hackware . | . . . . Protection . | . . . . Artifact . | . . . . Weapon 12 | 2 1 2 7 Energy Gun 3 | 1 1 . 1 Energy Cannon . | . . . . Ballistic Gun 5 | 1 . 1 3 Ballistic Cannon 2 | . . 1 1 Launcher 2 | . . . 2 Special Weapon . | . . . . Impact Weapon . | . . . . Slashing Weapon . | . . . . Piercing Weapon . | . . . . Special Melee Weapon . | . . . . Unidentified Prototypes . | . . . . Parts Lost 11 | . . 1 10 Power 3 | . . 1 2 Propulsion 4 | . . . 4 Utility 1 | . . . 1 Weapon 3 | . . . 3 Highest Loss Streak 7 | . . 1 7 To Critical Strikes 7 | . . . 7 Average Slot Usage (%) 99 | . 100 99 97 Engine 13 | . 14 13 14 Treads 24 | . 26 21 25 Wheel 2 | . 1 6 . Device 11 | . 14 12 9 Storage 13 | . 14 14 13 Processor 2 | . . 1 4 Energy Gun 8 | . 14 11 . Ballistic Gun 13 | . 14 14 13 Ballistic Cannon 5 | . . 2 13 Naked Turns . | . . . . Heaviest Build 93 | 15 50 93 92 Greatest Support 40 | 16 40 40 40 Greatest Overweight (x) 5 | . 3 5 5 Average Overweight (x) 1 | . 1 2 1 Largest Inventory Capacity 25 | 8 20 25 25 Average Capacity 20 | 6 19 21 20 Most Carried 25 | 4 19 25 25 Average Carried 15 | 2 11 21 15 Final Capacity 25 | 8 20 25 5 Final Carried 25 | 4 19 25 5 Class Distribution -------------------- 100% | Mutant Dominant Class ---------------- Mutant | -10/Materials Mutant | -10/Mines Mutant | -10/Exiles Resources | -11 -10 -10 -10 ----------- Run | Jun Mat Min Exi Matter Collected 810 | 250 170 90 300 Remotely . | . . . . Salvage Created 730 | 27 523 152 28 Parts 66 | 3 41 12 10 Haulers Intercepted 2 | . 2 . . Recyclers Shooed 1 | . . 1 . Parts Field Recycled . | . . . . Retrieved Matter . | . . . . Parts Self-Destructed . | . . . . Prevented . | . . . . Kills | -11 -10 -10 -10 ------- Run | Jun Mat Min Exi Combat Hostiles Destroyed 25 | . 11 7 7 Guns 19 | . 11 7 1 Cannons 1 | . . . 1 AOE 5 | . . . 5 Classes Destroyed 8 | 1 6 . 1 Worker 1 | . 1 . . Tunneler 1 | 1 . . . Hauler 2 | . 2 . . Recycler 1 | . 1 . . Watcher 2 | . 2 . . Swarmer 13 | . 8 5 . Grunt 5 | . 3 2 . Assembled 7 | . . . 7 Best Kill Streak 8 | 1 4 3 8 Combat Bots Only 7 | . 3 3 7 Max Kills in Single Turn 4 | 1 1 1 4 Gunslinging . | . . . . Exploded 4 | . . . 4 Melee . | . . . . Uniques/NPCs Destroyed 1 | . . . 1 EX-HEX (-10/Exiles) Combat | -11 -10 -10 -10 -------- Run | Jun Mat Min Exi Damage Taken 1438 | . 189 302 947 Core 251 | . 32 51 168 Absorbed by Shields . | . . . . Core Remaining (%) 100 | 100 . . . Volleys Fired 98 | 2 39 23 34 Largest 2 | 2 2 2 2 Hottest 70 | 70 70 70 70 Shots Fired 196 | 4 78 46 68 Gun 166 | 4 78 45 39 Cannon 25 | . . 1 24 Launcher 5 | . . . 5 Special . | . . . . Kinetic 123 | 2 39 24 58 Thermal 68 | 2 39 22 5 Explosive 5 | . . . 5 Electromagnetic . | . . . . Robot Hit Streak 29 | 3 14 29 10 Robot Miss Streak 3 | 1 3 3 2 Penetration Max . | . . . . Secondary Targets 3 | . . 2 1 Max Gunslinging Chain 1 | . . 1 1 Shots Hit Robots 146 | 3 59 36 48 Core Hits 60 | 1 25 10 24 Critical Kills . | . . . . Critical Parts Destroyed 1 | . . . 1 Critical Strikes 8 | . 3 1 4 Burn 4 | . 3 1 . Destroy 4 | . . . 4 Melee Attacks . | . . . . Impact . | . . . . Slashing . | . . . . Piercing . | . . . . Sneak Attacks . | . . . . Combat Hostiles . | . . . . Follow-up Attacks . | . . . . Damage Inflicted 2300 | 41 735 485 1039 Guns 1454 | 41 731 456 226 Cannons 395 | . . 29 366 Explosions 447 | . . . 447 Melee . | . . . . Ramming 4 | . 4 . . Kinetic 1205 | 15 365 238 587 Thermal 644 | 26 366 247 5 Explosive 447 | . . . 447 Electromagnetic . | . . . . Impact . | . . . . Slashing . | . . . . Piercing . | . . . . Highest Corruption 1 | . 1 1 1 Average Corruption 1 | . 1 1 1 Corruption Purged . | . . . . Corruption Blocked . | . . . . Effects 26 | . 2 13 11 Message Errors 5 | . . 2 3 Matter Fused 4 | . . 3 1 Heat Flow Errors 3 | . 1 1 1 Energy Discharges 2 | . 1 . 1 Parts Rejected 1 | . . 1 . Data Loss (minor) 8 | . . 4 4 Data Loss (major) 1 | . . 1 . Misfires 1 | . . . 1 Alerts 1 | . . 1 . Overload Shots . | . . . . Overflow Damage . | . . . . Projectiles . | . . . . Explosions . | . . . . Melee . | . . . . Knockbacks 7 | . . 1 6 Impact . | . . . . Kinetic 7 | . . 1 6 Secondary . | . . . . Self-Inflicted Damage 76 | . . . 76 Shots 3 | . . . 3 Rammed 3 | . 2 1 . Targets Rammed 3 | . 2 1 . Kicked . | . . . . Crushed . | . . . . Highest Temperature 307 | 9 171 174 307 Average Temperature 73 | 6 25 57 149 Received Heat Transfer 228 | . 78 150 . Effects 2 | . . . 2 Interference 2 | . . . 2 Siege Activations . | . . . . Robots Corrupted . | . . . . Combat Hostiles . | . . . . Parts Fried . | . . . . Impact Corruptions . | . . . . Robots Melted . | . . . . Combat Hostiles . | . . . . Parts Melted 3 | . 1 2 . Heat Transferred 2191 | 74 1295 777 45 Parts Sabotaged . | . . . . Parts Stolen . | . . . . Parts Stripped . | . . . . Power Chain Reactions . | . . . . Missiles Intercepted . | . . . . Alert | -11 -10 -10 -10 ------- Run | Jun Mat Min Exi Peak Influence 198 | 5 198 90 . Initial 2 | . 2 . . Average 43 | . 46 40 . Maximum Alert Level . | . . . . Low Security (%) 100 | 100 100 100 . Level 1 . | . . . . Level 2 . | . . . . Level 3 . | . . . . Level 4 . | . . . . Level 5 . | . . . . High Security . | . . . . Max Security . | . . . . Squads Dispatched 1 | . 1 . . Investigation 1 | . 1 . . Extermination . | . . . . Reinforcement . | . . . . Assault . | . . . . Garrison . | . . . . Intercept . | . . . . Searches Triggered . | . . . . Construction Impeded . | . . . . Haulers Reinforced . | . . . . Active Scanning Responses . | . . . . Cargo Convoy Interrupts . | . . . . Stealth | -11 -10 -10 -10 --------- Run | Jun Mat Min Exi Distress Signals 1 | . 1 . . Communications Jammed . | . . . . Distress Signals . | . . . . Times Spotted 38 | . 19 11 8 Peak Tracking Total 9 | . 4 3 9 Tactical Retreats 1 | . . 1 . Traps | -11 -10 -10 -10 ------- Run | Jun Mat Min Exi Traps Triggered 4 | . 4 . . Indirectly . | . . . . Trap Hack Attempts . | . . . . Triggered . | . . . . Disarmed . | . . . . Reprogrammed . | . . . . Reused . | . . . . Traps Extracted . | . . . . Installed . | . . . . Triggered . | . . . . Most Traps Carried 5 | . . 5 5 Machines | -11 -10 -10 -10 ---------- Run | Jun Mat Min Exi Machines Disabled 5 | . 1 . 4 Max in Single Turn 2 | . 1 . 2 Machines Repaired . | . . . . Machines Sabotaged . | . . . . Overloaded Fab Kills . | . . . . Hacking | -11 -10 -10 -10 --------- Run | Jun Mat Min Exi Machines Accessed 13 | . 8 . 5 Terminals 8 | . 8 . . Fabricators . | . . . . Repair Stations . | . . . . Recycling Units . | . . . . Scanalyzers . | . . . . Garrison Access . | . . . . Total Hacks 35 | . 23 . 12 Successful 21 | . 9 . 12 Failed 13 | . 13 . . Catastrophic 1 | . 1 . . Database Lockouts 1 | . 1 . . Manual 22 | . 21 . 1 Terminals 23 | . 23 . . Fabricators . | . . . . Repair Stations . | . . . . Recycling Units . | . . . . Scanalyzers . | . . . . Garrison Access . | . . . . Terminal Hacks 18 | . 6 . 12 Record 11 | . . . 11 Robot Analysis 5 | . 5 . . Terminal Index 1 | . 1 . . EX-Prototype ID Bank 1 | . . . 1 Fabricator Hacks . | . . . . Repair Station Hacks . | . . . . Recycling Unit Hacks . | . . . . Scanalyzer . | . . . . Garrison Access Hacks . | . . . . Unauthorized Hacks 3 | . 3 . . Terminals 3 | . 3 . . Botnet 3 | . 3 . . Fabricators . | . . . . Repair Stations . | . . . . Recycling Units . | . . . . Scanalyzers . | . . . . Garrison Access . | . . . . Data Cores Recovered . | . . . . Used . | . . . . Hacking Detections 8 | . 8 . . Full Trace Events 1 | . 1 . . Feedback Events . | . . . . Feedback Blocked . | . . . . Robot Schematics Acquired . | . . . . Robots Built . | . . . . Authchips . | . . . . Time . | . . . . Total Robot Build Rating . | . . . . Part Schematics Acquired . | . . . . Parts Built . | . . . . Authchips . | . . . . Time . | . . . . Total Part Build Rating . | . . . . Parts Repaired . | . . . . Time . | . . . . Parts Recycled . | . . . . Recycled Matter . | . . . . Retrieved Matter . | . . . . Retrieved Components . | . . . . Parts Scanalyzed . | . . . . Part Schematics Acquired . | . . . . Parts Damaged . | . . . . Bothacking | -11 -10 -10 -10 ------------ Run | Jun Mat Min Exi Used RIF Installer . | . . . . Robots Hacked . | . . . . Non-combat . | . . . . Combat . | . . . . Robot Hacks Applied . | . . . . Relay Couplers Released . | . . . . Fabnet Peak Effective % . | . . . . Robots Rewired . | . . . . Allies Hacked . | . . . . Hacks Repelled . | . . . . Allies | -11 -10 -10 -10 -------- Run | Jun Mat Min Exi Total Allies . | . . . . Largest Group . | . . . . Highest-Rated Group . | . . . . Highest-Rated Ally . | . . . . Total Orders . | . . . . Ally Attacks . | . . . . Total Damage . | . . . . Kills . | . . . . Allies Corrupted . | . . . . Allies Melted . | . . . . Intel | -11 -10 -10 -10 ------- Run | Jun Mat Min Exi Robot Analysis Total 5 | . 5 . . Derelict Logs Recovered 1 | . . 1 . Drone Launches 1 | . . . 1 Drone Recoveries . | . . . . Exploration | -11 -10 -10 -10 ------------- Run | Jun Mat Min Exi Turns Passed 5001 | 61 1796 1388 1756 Spaces Moved 2125 | 42 744 644 695 Core 12 | 1 . . 11 Treads 1574 | . 634 301 639 Legs . | . . . . Wheels 539 | 41 110 343 45 Hover . | . . . . Flight . | . . . . Fastest Speed 50 | 50 100 130 100 Average Speed 216 | 98 221 200 232 Slowest Speed 240 | 100 240 240 240 Overloaded Moves . | . . . . Propulsion Burnouts . | . . . . Robots Hopped . | . . . . Cave-ins Triggered . | . . . . Exploration Rate (%) 70 | 3 94 96 89 Regions Visited 3 Branch Regions 2 Pre-discovered Areas 2 | . . 1 1 Known Exits Taken 1 | . . 1 . Unknown Exits Taken 2 | 1 1 . . Scrap Searched 2 | . . 2 . Spaces Dug . | . . . . Terrain Destroyed 24 | . . . 24 Melee . | . . . . Projectile 8 | . . . 8 AOE 16 | . . . 16 Terrain Rammed . | . . . . Walls Destroyed . | . . . . Machines Disabled . | . . . . Actions | -11 -10 -10 -10 --------- Run | Jun Mat Min Exi Total 2332 | 54 807 694 777 Wait 16 | . 6 . 10 Move 2122 | 41 743 643 695 Hop . | . . . . Pick Up 36 | 4 14 12 6 Fast Attach 10 | 7 1 1 1 Attach 9 | . . 2 7 Detach 1 | . . . 1 Swap 14 | . 2 6 6 Drop 23 | . . 6 17 Fire 98 | 2 39 23 34 Melee . | . . . . Ram . | . . . . Kick . | . . . . Crush 3 | . 2 1 . Escape Stasis . | . . . . Rewire . | . . . . Trap . | . . . . Miscellaneous . | . . . . Route ------- -11/Junkyard -10/Materials (discovered 4 exits: *Mat x3 / [*Min]) -10/Mines (discovered 3 exits: *Mat x2 / *Exi) -10/Exiles (discovered 2 exits: [*Min x2]) History --------- Turn | Location | Event 15 | -11/Junkyard | Discovered new exit (range 16) 62 | -11/Junkyard | Entered Materials 312 | -10/Materials | Build established: Mutant 604 | -10/Materials | Discovered new exit (range 4) 824 | -10/Materials | Discovered new exit (range 15) 889 | -10/Materials | Discovered new exit (range 7) 1335 | -10/Materials | Discovered new exit (range 16) 1552 | -10/Materials | Central database locked down 1858 | -10/Materials | Entered Mines 2377 | -10/Mines | Assembled infested the area 2719 | -10/Mines | Found a hidden stash of uninstalled traps 2772 | -10/Mines | Learned Materials emergency access door positions 3038 | -10/Mines | A weapon hastily lodged in a ceiling crevice suddenly fell to the ground 3066 | -10/Mines | Learned location of Storage (-7) 3070 | -10/Mines | Discovered new exit (range 4) 3080 | -10/Mines | Identified exit to Materials 3162 | -10/Mines | Discovered exit to Materials (range 9) 3235 | -10/Mines | Deemed a non-threat by the Exiles lab entrance 3237 | -10/Mines | Discovered new exit (range 5) 3244 | -10/Mines | Identified exit to Exiles 3246 | -10/Mines | Entered Exiles 3273 | -10/Exiles | Discovered new exit (range 15) 3333 | -10/Exiles | Met 8R-AWN 3371 | -10/Exiles | Met EX-HEX 3673 | -10/Exiles | Met EX-BIN 3719 | -10/Exiles | Aligned with FarCom system 3721 | -10/Exiles | Given EX-Vault access code 3777 | -10/Exiles | Opened EX-Vault 3794 | -10/Exiles | Found Supersonic Drone Bay 3846 | -10/Exiles | Warned to stay clear of 0b10 Research branches 4064 | -10/Exiles | Met EX-DEC 4131 | -10/Exiles | Learned location of Zion (-7) 4329 | -10/Exiles | Discovered new exit (range 12) 4494 | -10/Exiles | Visited The Gauntlet 4870 | -10/Exiles | Attacked by the Exiles 4875 | -10/Exiles | Destroyed EX-HEX 4892 | -10/Exiles | Core integrity fell below 50% 4920 | -10/Exiles | Destroyed 7 combat bots 4938 | -10/Exiles | Lost 7 parts (2p4n1w) 4965 | -10/Exiles | Core integrity fell below 20% 4999 | -10/Exiles | Lost 3 parts (1u2w) 5002 | -10/Exiles | Destroyed by 8R-AWN with 8R-AWN's Boregun Last Messages --------------- 04954_ 8R-AWN suffers critical hit (Destroy). 04957_ 8R-AWN knocked back. 04961_ Penetrated by HV Slug. 04961_ Critical hit (Destroy). 04961_ Slug Cannon destroyed. 04964_ Penetrated by HV Slug. 04968_ Critical hit (Destroy). 04968_ Supersonic Drone Bay destroyed. 04970_ The unstable cave ceiling collapses. 04971_ Penetrated by HV Slug. 04978_ Overheating: System interference. 04978_ Med. Laser temporarily disabled. 04979_ Overheating: System interference. 04979_ Lgt. Assault Rifle temporarily disabled. 04979_ Penetrated by HV Slug. 04987_ System corrupted: Component data lost. 04988_ HV Slug penetrates Earth. 04990_ Dropped Hcp. Storage Unit. 04990_ Dropped Med. Laser. 04991_ Penetrated by HV Slug. Map ----- +----------------------------------------------------+ | ????# #?#"""""""#????????????????????????????? | | ???## ###"" """"#????????????????????????????? | | ???#" """"#????????????????????????????? | | ???#" """#????????????????????????????? | | ???#" """#????????????????????????????? | | ???#" """#????????????????????????????? | | ???#" """#????????????????????????????? | | ???#" """#????????????????????????????? | | ???## """""???????????????????????????? | | ????# """#????????????????????????????? | | ????#" "X" """""???????????????????????????? | | ????#" """ #????????????????????????????? | | ????#" """""""""#????????????????????????????? | | ???##" ###########????????????????????????????? | | ??##"" #??????????????????????????????????????? | | ###"" #??????????????????????????????????????? | | """"" ##?????????????????????????????????????? | | " "" ##???##########???????????????????????? | | " #####"""""""""##?????????????????????? | | " """ """"##????????????????????? | | "" " #????????????????????? | | " """#????????????????????? | | "a"#???????????#####????? | | " "##?????????##" #????? | | ""###???????#" #????? | | """""" @ """#??????##" ####?? | | ######""" #????### ""##? | | ##????#####""" ###### "## | | #?????????##""" ##** " | | ???????????#"""" [[ ; * % | | ???????????#"" % !!*g %% "# | | ?####?????#"""" ! % "### | | # ###?""" * % ###"""""## | | """" #"""##?#######? | | ! ######?????????? | | ##??????????????? | | ##??????????????? | | " "" " #???????????????? | | ""## ##""" " " ""#" % #???????????????? | | ""###?????####""" """##" ####???????????????? | | "##??????????###""""#?## #??????????????????? | | "#?????????????####????########??????????????????? | | ##???????????????????????????????????????????????? | | #????????????????????????????????????????????????? | | ?????????????????????????????????????????????????? | | ?????????????????????????????????????????????????? | | ?????????????????????????????????????????????????? | | ?????????????????????????????????????????????????? | | ?????????????????????????????????????????????????? | | ?????????????????????????????????????????????????? | +----------------------------------------------------+ Best States ------------- Heat Dissipation 25 Energy Generation 10 Energy Capacity 250 Matter Stores 300 Matter Capacity 300 Sight Range 16 Terrain Scan Density 10 Resistance: KI 20 Resistance: TH 20 Resistance: EX 20 Resistance: EM 20 Resistance: I 20 Resistance: S 20 Resistance: P 20 Evasion (%) 40 Recoil Reduction 2 Offensive Hacking 10 Item Schematics ----------------- None Robot Schematics ------------------ None Fabricated ------------ Nothing Alien Tech Used ----------------- None Achievements -------------- None Challenges ------------ None Game ------ Seed CorruptionAlloyRifle Manual? 0 Play Time 00:26:25 Cumulative 114.4 hours Start 2023.10.22 @ 10:12:54 End 2023.10.22 @ 10:45:34 Sessions 1 Manual Loads 0 Difficulty Adventurer Special Mode None Game No. 101 Rogue 0 Adventurer 101 Explorer 0 Win Type - Total 1 Types 1/0/0/0/0/0/0/0/0 Lore% 52 Gallery% 53 Achievement% 46 Wizard Run 0 Options --------- ASCII 0 Keyboard 0 Movement Mouse Keybinds 0 Fullscreen 2 Font 20/SmallcapsGlow Map View 66x50 Tactical HUD 1 Map Filters NONE Filters NONE Steam X RUN: 64a9d7a7-77d7-4d3e-8e16-ad6f5e7ce669